[Event "Early-Titled-Tuesday-Blitz-April-23-2024"]
[Site "Chess.com"]
[Date "2024.04.23"]
[Round "2"]
[White "LuisFSiles"]
[Black "pfalcon1949"]
[Result "1-0"]
[WhiteElo "2453"]
[BlackElo "1963"]
[TimeControl "180+1"]
[EndTime "8:16:37 PDT"]
[Termination "LuisFSiles won by resignation"]

1. e4 {[%clk 0:03:00.9]} 1... e6 {[%clk 0:02:59.8]} 2. d4 {[%clk 0:03:00.1]}
2... d5 {[%clk 0:02:59.7]} 3. e5 {[%clk 0:03:00]} 3... c5 {[%clk 0:02:58.6]} 4.
c3 {[%clk 0:03:00]} 4... Nc6 {[%clk 0:02:59.2]} 5. Nf3 {[%clk 0:03:00.1]} 5...
Qb6 {[%clk 0:02:59.8]} 6. a3 {[%clk 0:02:59.7]} 6... c4 {[%clk 0:02:59]} 7. Nbd2
{[%clk 0:02:59.1]} 7... Na5 {[%clk 0:02:58.9]} 8. Rb1 {[%clk 0:02:58.7]} 8...
Bd7 {[%clk 0:02:58.2]} 9. b4 {[%clk 0:02:58.6]} 9... cxb3 {[%clk 0:02:56.7]} 10.
Nxb3 {[%clk 0:02:58.5]} 10... Ba4 {[%clk 0:02:56.3]} 11. Nxa5 {[%clk 0:02:58.8]}
11... Bxd1 {[%clk 0:02:55.4]} 12. Rxb6 {[%clk 0:02:58.8]} 12... axb6 {[%clk
0:02:55.8]} 13. Bb5+ {[%clk 0:02:57.8]} 13... Kd8 {[%clk 0:02:54.3]} 14. Nxb7+
{[%clk 0:02:57.2]} 14... Kc7 {[%clk 0:02:53.9]} 15. Nd6 {[%clk 0:02:57.4]} 15...
Bxf3 {[%clk 0:02:32.8]} 16. Nxf7 {[%clk 0:02:57.1]} 16... Bxg2 {[%clk
0:02:09.2]} 17. Rg1 {[%clk 0:02:49.7]} 17... Be4 {[%clk 0:02:03.6]} 18. Nxh8
{[%clk 0:02:39.9]} 18... Ne7 {[%clk 0:01:57.1]} 19. Nf7 {[%clk 0:02:30.4]} 19...
Nf5 {[%clk 0:01:51.6]} 20. a4 {[%clk 0:02:18.7]} 20... Nh4 {[%clk 0:01:41.3]}
21. Rg3 {[%clk 0:02:05.2]} 21... h6 {[%clk 0:01:26.4]} 22. Nd6 {[%clk
0:02:01.8]} 22... Bh7 {[%clk 0:01:09.1]} 23. Ne8+ {[%clk 0:01:51.4]} 23... Rxe8
{[%clk 0:00:53.3]} 24. Bxe8 {[%clk 0:01:50.3]} 24... g5 {[%clk 0:00:47.2]} 25.
Bb5 {[%clk 0:01:43.4]} 25... Be7 {[%clk 0:00:44.9]} 26. c4 {[%clk 0:01:39.4]}
26... Bb4+ {[%clk 0:00:37.2]} 27. Bd2 {[%clk 0:01:37.5]} 27... Be7 {[%clk
0:00:32.8]} 28. cxd5 {[%clk 0:01:30.7]} 28... exd5 {[%clk 0:00:32]} 29. Rc3+
{[%clk 0:01:30.3]} 29... Kb7 {[%clk 0:00:29.2]} 30. Bc6+ {[%clk 0:01:29.1]}
30... Ka7 {[%clk 0:00:29.3]} 31. Bxd5 {[%clk 0:01:28.4]} 31... Bb4 {[%clk
0:00:27.2]} 32. Rc7+ {[%clk 0:01:27.4]} 32... Kb8 {[%clk 0:00:24.8]} 33. Rb7+
{[%clk 0:01:22.5]} 33... Kc8 {[%clk 0:00:23.7]} 34. Bxb4 {[%clk 0:01:22.6]}
34... Bf5 {[%clk 0:00:22.1]} 35. Bd6 {[%clk 0:01:19.1]} 35... Ng6 {[%clk
0:00:13.6]} 36. Bc6 {[%clk 0:01:16.2]} 1-0

[Event "Early-Titled-Tuesday-Blitz-April-23-2024"]
[Site "Chess.com"]
[Date "2024.04.23"]
[Round "2"]
[White "chess123456s"]
[Black "Roosters19"]
[Result "1/2-1/2"]
[WhiteElo "2621"]
[BlackElo "2334"]
[TimeControl "180+1"]
[EndTime "8:16:42 PDT"]
[Termination "Game drawn - insufficient material"]

1. Nf3 {[%clk 0:03:00.9]} 1... c5 {[%clk 0:02:59.2]} 2. g3 {[%clk 0:02:58.4]}
2... Nc6 {[%clk 0:02:54.4]} 3. Bg2 {[%clk 0:02:57.9]} 3... g6 {[%clk 0:02:53]}
4. O-O {[%clk 0:02:55.1]} 4... Bg7 {[%clk 0:02:52.5]} 5. c3 {[%clk 0:02:53.7]}
5... Nf6 {[%clk 0:02:46.2]} 6. d4 {[%clk 0:02:53.4]} 6... cxd4 {[%clk
0:02:46.3]} 7. Nxd4 {[%clk 0:02:53.5]} 7... O-O {[%clk 0:02:45.5]} 8. Nd2 {[%clk
0:02:49.7]} 8... Nxd4 {[%clk 0:02:36.6]} 9. cxd4 {[%clk 0:02:49.8]} 9... d6
{[%clk 0:02:36.7]} 10. Nb3 {[%clk 0:02:48.9]} 10... Rb8 {[%clk 0:02:36.6]} 11.
Bf4 {[%clk 0:02:43.1]} 11... b6 {[%clk 0:02:35.7]} 12. Rc1 {[%clk 0:02:43.7]}
12... Bb7 {[%clk 0:02:30.1]} 13. Bxb7 {[%clk 0:02:39.8]} 13... Rxb7 {[%clk
0:02:31]} 14. Qd2 {[%clk 0:02:34.8]} 14... Qd7 {[%clk 0:02:28.2]} 15. Bh6 {[%clk
0:02:34.2]} 15... Rc8 {[%clk 0:02:26.5]} 16. Bxg7 {[%clk 0:02:33.9]} 16... Kxg7
{[%clk 0:02:25.8]} 17. Rc3 {[%clk 0:02:15.7]} 17... Rxc3 {[%clk 0:02:21.4]} 18.
Qxc3 {[%clk 0:02:13.2]} 18... Rc7 {[%clk 0:02:21.4]} 19. Qd3 {[%clk 0:02:09.3]}
19... Qa4 {[%clk 0:02:11.5]} 20. Rc1 {[%clk 0:02:04]} 20... Rxc1+ {[%clk
0:01:56.9]} 21. Nxc1 {[%clk 0:02:04.9]} 21... e5 {[%clk 0:01:51.9]} 22. dxe5
{[%clk 0:01:59.6]} 22... dxe5 {[%clk 0:01:52.8]} 23. a3 {[%clk 0:01:59.2]} 23...
Qe4 {[%clk 0:01:40.8]} 24. Qxe4 {[%clk 0:01:55.3]} 24... Nxe4 {[%clk 0:01:41.7]}
25. f3 {[%clk 0:01:56.2]} 25... Nd6 {[%clk 0:01:39.3]} 26. Kf2 {[%clk
0:01:55.9]} 26... Kf6 {[%clk 0:01:38]} 27. e4 {[%clk 0:01:53]} 27... Ke6 {[%clk
0:01:37.6]} 28. Ke3 {[%clk 0:01:53.4]} 28... Nc4+ {[%clk 0:01:36.3]} 29. Kd3
{[%clk 0:01:52.7]} 29... Nxb2+ {[%clk 0:01:35]} 30. Kc3 {[%clk 0:01:53.3]} 30...
Na4+ {[%clk 0:01:34.9]} 31. Kb4 {[%clk 0:01:53.3]} 31... Nc5 {[%clk 0:01:35.1]}
32. Kb5 {[%clk 0:01:53.6]} 32... Kd6 {[%clk 0:01:31.4]} 33. Ne2 {[%clk
0:01:53.6]} 33... Kc7 {[%clk 0:01:30.9]} 34. Nc3 {[%clk 0:01:50.6]} 34... a6+
{[%clk 0:01:30.9]} 35. Kc4 {[%clk 0:01:51.1]} 35... Kc6 {[%clk 0:01:31.1]} 36.
a4 {[%clk 0:01:48.1]} 36... Nxa4 {[%clk 0:01:27.6]} 37. Nd5 {[%clk 0:01:48.4]}
37... b5+ {[%clk 0:01:26.2]} 38. Kb4 {[%clk 0:01:48.1]} 38... Nb6 {[%clk
0:01:25.1]} 39. Nf6 {[%clk 0:01:44.4]} 39... h5 {[%clk 0:01:22.9]} 40. g4 {[%clk
0:01:44.3]} 40... hxg4 {[%clk 0:01:22.4]} 41. fxg4 {[%clk 0:01:45.2]} 41... Nc4
{[%clk 0:01:18.6]} 42. h4 {[%clk 0:01:42.4]} 42... a5+ {[%clk 0:01:16.2]} 43.
Kb3 {[%clk 0:01:42.5]} 43... Kd6 {[%clk 0:01:14]} 44. h5 {[%clk 0:01:37.6]}
44... gxh5 {[%clk 0:01:13.8]} 45. gxh5 {[%clk 0:01:38.5]} 45... Ke6 {[%clk
0:01:14]} 46. Nd5 {[%clk 0:01:34.1]} 46... Nd2+ {[%clk 0:01:13.7]} 47. Kc2
{[%clk 0:01:31.3]} 47... Nxe4 {[%clk 0:01:14.1]} 48. h6 {[%clk 0:01:28.9]} 48...
Ng5 {[%clk 0:01:11.1]} 49. Nc7+ {[%clk 0:01:27.5]} 49... Kf6 {[%clk 0:01:08.8]}
50. Nxb5 {[%clk 0:01:28.4]} 50... Kg6 {[%clk 0:01:09.1]} 51. Kd3 {[%clk
0:01:28.5]} 51... Kxh6 {[%clk 0:01:09]} 52. Nd6 {[%clk 0:01:28.7]} 52... Kg6
{[%clk 0:01:08.7]} 53. Nc4 {[%clk 0:01:29.3]} 53... a4 {[%clk 0:01:08.3]} 54.
Nxe5+ {[%clk 0:01:29.2]} 54... Kf5 {[%clk 0:01:07.8]} 55. Nxf7 {[%clk 0:01:25]}
55... Nxf7 {[%clk 0:01:07.2]} 56. Kc3 {[%clk 0:01:24.2]} 56... Nd6 {[%clk
0:00:51.6]} 57. Kb4 {[%clk 0:01:23.9]} 57... Nb5 {[%clk 0:00:50.9]} 58. Kxa4
{[%clk 0:01:23.3]} 1/2-1/2

[Event "Early-Titled-Tuesday-Blitz-April-23-2024"]
[Site "Chess.com"]
[Date "2024.04.23"]
[Round "2"]
[White "lcmil"]
[Black "Freeeeeeeeeeeeeeeeee"]
[Result "1-0"]
[WhiteElo "2470"]
[BlackElo "2062"]
[TimeControl "180+1"]
[EndTime "8:16:45 PDT"]
[Termination "lcmil won on time"]

1. e4 {[%clk 0:02:54.6]} 1... e5 {[%clk 0:02:57.9]} 2. f4 {[%clk 0:02:53.9]}
2... d5 {[%clk 0:02:55.7]} 3. Nf3 {[%clk 0:02:52]} 3... Bg4 {[%clk 0:02:39.6]}
4. exd5 {[%clk 0:02:36.8]} 4... e4 {[%clk 0:01:58.4]} 5. Qe2 {[%clk 0:02:34.4]}
5... Qe7 {[%clk 0:01:57.5]} 6. h3 {[%clk 0:02:29.7]} 6... Bh5 {[%clk 0:01:56.4]}
7. g4 {[%clk 0:02:28]} 7... exf3 {[%clk 0:01:55.9]} 8. Qxe7+ {[%clk 0:02:27.4]}
8... Bxe7 {[%clk 0:01:52.4]} 9. Nc3 {[%clk 0:02:07.4]} 9... Bh4+ {[%clk
0:01:51]} 10. Kd1 {[%clk 0:02:07.3]} 10... Nf6 {[%clk 0:01:47.1]} 11. gxh5
{[%clk 0:02:05.1]} 11... Nxh5 {[%clk 0:01:43.6]} 12. Bb5+ {[%clk 0:02:05.4]}
12... c6 {[%clk 0:01:27.4]} 13. dxc6 {[%clk 0:02:06.3]} 13... bxc6 {[%clk
0:01:27.1]} 14. Ba4 {[%clk 0:02:06.4]} 14... Ng3 {[%clk 0:01:10.7]} 15. Rh2
{[%clk 0:01:55.6]} 15... O-O {[%clk 0:00:56.4]} 16. d3 {[%clk 0:01:52.1]} 16...
Re8 {[%clk 0:00:55.2]} 17. Bd2 {[%clk 0:01:49]} 17... Nf5 {[%clk 0:00:23.7]} 18.
Ne4 {[%clk 0:01:43.4]} 18... Ng3 {[%clk 0:00:14.4]} 19. Be1 {[%clk 0:01:27]}
19... Nxe4 {[%clk 0:00:08.2]} 20. Bxh4 {[%clk 0:01:27.1]} 20... Nc5 {[%clk
0:00:07.4]} 21. Bb3 {[%clk 0:01:25.7]} 21... Nxb3 {[%clk 0:00:07.4]} 22. axb3
{[%clk 0:01:26.3]} 22... Nd7 {[%clk 0:00:06.9]} 23. Rf2 {[%clk 0:01:23.6]} 23...
Re3 {[%clk 0:00:07.3]} 24. Kd2 {[%clk 0:01:23.1]} 24... Rae8 {[%clk 0:00:06.4]}
25. Rxa7 {[%clk 0:01:17]} 25... Re2+ {[%clk 0:00:03.6]} 26. Rxe2 {[%clk
0:01:16.7]} 26... Rxe2+ {[%clk 0:00:03.4]} 27. Kc3 {[%clk 0:01:15.9]} 27... Nf8
{[%clk 0:00:03.3]} 28. Ra1 {[%clk 0:01:12.3]} 28... f6 {[%clk 0:00:02.1]} 29.
Rf1 {[%clk 0:01:11.9]} 29... Ng6 {[%clk 0:00:02.8]} 30. Bg3 {[%clk 0:01:11.2]}
30... Re3 {[%clk 0:00:01]} 31. Kd4 {[%clk 0:01:08.6]} 31... Re2 {[%clk
0:00:01.4]} 32. Kc3 {[%clk 0:01:06.6]} 1-0

[Event "Early-Titled-Tuesday-Blitz-April-23-2024"]
[Site "Chess.com"]
[Date "2024.04.23"]
[Round "2"]
[White "Mihaiionescu1"]
[Black "briesmas"]
[Result "0-1"]
[WhiteElo "2460"]
[BlackElo "2216"]
[TimeControl "180+1"]
[EndTime "8:16:46 PDT"]
[Termination "briesmas won by resignation"]

1. Nf3 {[%clk 0:03:00.9]} 1... c5 {[%clk 0:03:00]} 2. c4 {[%clk 0:02:59.5]} 2...
Nc6 {[%clk 0:02:56.6]} 3. b3 {[%clk 0:02:57.1]} 3... e5 {[%clk 0:02:52]} 4. Nc3
{[%clk 0:02:54]} 4... g6 {[%clk 0:02:50.9]} 5. Bb2 {[%clk 0:02:49.5]} 5... Bg7
{[%clk 0:02:51]} 6. e3 {[%clk 0:02:42.6]} 6... Nge7 {[%clk 0:02:49.9]} 7. Be2
{[%clk 0:02:14.9]} 7... O-O {[%clk 0:02:47.3]} 8. O-O {[%clk 0:02:13.7]} 8... d6
{[%clk 0:02:46.9]} 9. Nb5 {[%clk 0:01:23.9]} 9... a6 {[%clk 0:02:39.3]} 10. Na3
{[%clk 0:01:22.9]} 10... e4 {[%clk 0:02:05.1]} 11. Bxg7 {[%clk 0:01:14.1]} 11...
exf3 {[%clk 0:02:04.9]} 12. Bxf8 {[%clk 0:01:02]} 12... fxe2 {[%clk 0:02:03.7]}
13. Qxe2 {[%clk 0:00:56]} 13... Qxf8 {[%clk 0:02:03.7]} 14. Nc2 {[%clk
0:00:48.3]} 14... Bf5 {[%clk 0:02:03.6]} 15. Rac1 {[%clk 0:00:45.3]} 15... Re8
{[%clk 0:01:53.8]} 16. e4 {[%clk 0:00:33.8]} 16... Be6 {[%clk 0:01:50.5]} 17.
Qe3 {[%clk 0:00:27]} 17... Qg7 {[%clk 0:01:47]} 18. Rfd1 {[%clk 0:00:22.2]}
18... Nd4 {[%clk 0:01:45.9]} 19. Nxd4 {[%clk 0:00:17.7]} 19... cxd4 {[%clk
0:01:44.8]} 20. Qe2 {[%clk 0:00:15.6]} 20... Nc6 {[%clk 0:01:45]} 21. d3 {[%clk
0:00:15.4]} 21... Qh6 {[%clk 0:01:26.4]} 22. c5 {[%clk 0:00:10.8]} 22... dxc5
{[%clk 0:01:11.4]} 23. Rxc5 {[%clk 0:00:09.4]} 23... Qf4 {[%clk 0:01:07.9]} 24.
Rcc1 {[%clk 0:00:02.4]} 24... Ne5 {[%clk 0:01:04]} 25. Rc2 {[%clk 0:00:01.8]}
25... Bg4 {[%clk 0:01:02.5]} 26. g3 {[%clk 0:00:02.4]} 26... Bxe2 {[%clk
0:00:58.7]} 27. gxf4 {[%clk 0:00:02.9]} 27... Bxd1 {[%clk 0:00:58.9]} 28. fxe5
{[%clk 0:00:03.2]} 28... Bxc2 {[%clk 0:00:58.8]} 0-1

[Event "Early-Titled-Tuesday-Blitz-April-23-2024"]
[Site "Chess.com"]
[Date "2024.04.23"]
[Round "2"]
[White "JoliyRoger"]
[Black "ValentinDragnev"]
[Result "0-1"]
[WhiteElo "2411"]
[BlackElo "2742"]
[TimeControl "180+1"]
[EndTime "8:16:48 PDT"]
[Termination "ValentinDragnev won by resignation"]

1. d4 {[%clk 0:02:57]} 1... Nf6 {[%clk 0:02:54.6]} 2. c4 {[%clk 0:02:51.1]} 2...
c5 {[%clk 0:02:55.2]} 3. d5 {[%clk 0:02:50.5]} 3... b5 {[%clk 0:02:55.8]} 4.
cxb5 {[%clk 0:02:50.8]} 4... a6 {[%clk 0:02:56.5]} 5. e3 {[%clk 0:02:49.9]} 5...
g6 {[%clk 0:02:55.3]} 6. Nc3 {[%clk 0:02:49.1]} 6... Bg7 {[%clk 0:02:56]} 7. Rb1
{[%clk 0:02:38.8]} 7... O-O {[%clk 0:02:55.8]} 8. Bc4 {[%clk 0:02:38.5]} 8...
axb5 {[%clk 0:02:50.8]} 9. Bxb5 {[%clk 0:02:37.5]} 9... Bb7 {[%clk 0:02:45.9]}
10. Nge2 {[%clk 0:02:34]} 10... e6 {[%clk 0:02:46.1]} 11. dxe6 {[%clk
0:02:30.7]} 11... fxe6 {[%clk 0:02:45.8]} 12. O-O {[%clk 0:02:30.3]} 12... Qe7
{[%clk 0:02:44.2]} 13. b3 {[%clk 0:02:23.4]} 13... d5 {[%clk 0:02:43.2]} 14. Bb2
{[%clk 0:02:22.8]} 14... Nc6 {[%clk 0:02:43.4]} 15. a4 {[%clk 0:02:12.7]} 15...
Rad8 {[%clk 0:02:39.9]} 16. Ba3 {[%clk 0:01:57.1]} 16... e5 {[%clk 0:02:17.7]}
17. Qc1 {[%clk 0:01:30.2]} 17... d4 {[%clk 0:02:09.7]} 18. Bxc6 {[%clk
0:01:27.4]} 18... Bxc6 {[%clk 0:02:06.7]} 19. Nb5 {[%clk 0:01:27.8]} 19... Ne4
{[%clk 0:01:19.6]} 20. exd4 {[%clk 0:01:09]} 20... exd4 {[%clk 0:01:18.2]} 21.
Ng3 {[%clk 0:01:08.7]} 21... Nxg3 {[%clk 0:01:14.4]} 22. hxg3 {[%clk 0:01:08.3]}
22... Rf5 {[%clk 0:01:09.7]} 23. Qd2 {[%clk 0:00:55.1]} 23... Rh5 {[%clk
0:00:46.4]} 24. Rfe1 {[%clk 0:00:45.5]} 24... Qd7 {[%clk 0:00:41.1]} 25. Qd3
{[%clk 0:00:37]} 25... Rh1+ {[%clk 0:00:39.4]} 0-1

[Event "Early-Titled-Tuesday-Blitz-April-23-2024"]
[Site "Chess.com"]
[Date "2024.04.23"]
[Round "2"]
[White "IM_ArthurDW08"]
[Black "Kushch_Nikolai"]
[Result "0-1"]
[WhiteElo "2721"]
[BlackElo "2423"]
[TimeControl "180+1"]
[EndTime "8:16:50 PDT"]
[Termination "Kushch_Nikolai won by resignation"]

1. e4 {[%clk 0:02:56.4]} 1... c5 {[%clk 0:02:59.9]} 2. Nf3 {[%clk 0:02:56.4]}
2... e6 {[%clk 0:03:00.1]} 3. b3 {[%clk 0:02:54.8]} 3... a6 {[%clk 0:02:55.2]}
4. Bb2 {[%clk 0:02:54.7]} 4... Nc6 {[%clk 0:02:55.1]} 5. c4 {[%clk 0:02:50.6]}
5... Nf6 {[%clk 0:02:49.7]} 6. e5 {[%clk 0:02:49.6]} 6... Ng4 {[%clk 0:02:49.3]}
7. h3 {[%clk 0:02:49.7]} 7... Nh6 {[%clk 0:02:49.1]} 8. g4 {[%clk 0:02:47]} 8...
Be7 {[%clk 0:02:46.8]} 9. Nc3 {[%clk 0:02:44.4]} 9... b6 {[%clk 0:02:45.9]} 10.
Bg2 {[%clk 0:02:32.2]} 10... Bb7 {[%clk 0:02:45.7]} 11. O-O {[%clk 0:02:32.8]}
11... Qc7 {[%clk 0:02:45.5]} 12. Ne4 {[%clk 0:02:28.8]} 12... O-O {[%clk
0:02:40]} 13. Re1 {[%clk 0:02:25.2]} 13... Rad8 {[%clk 0:02:33.3]} 14. Qe2
{[%clk 0:02:11.5]} 14... d5 {[%clk 0:02:29.1]} 15. exd6 {[%clk 0:02:08.3]} 15...
Bxd6 {[%clk 0:02:28.4]} 16. Nxd6 {[%clk 0:01:38.7]} 16... Qxd6 {[%clk
0:02:23.5]} 17. Rad1 {[%clk 0:01:38.5]} 17... Nd4 {[%clk 0:02:01.4]} 18. Nxd4
{[%clk 0:01:36.5]} 18... Bxg2 {[%clk 0:02:00.5]} 19. Nxe6 {[%clk 0:01:16.7]}
19... Bxh3 {[%clk 0:01:57.5]} 20. Nxd8 {[%clk 0:00:49.7]} 20... Nxg4 {[%clk
0:01:50.9]} 21. Be5 {[%clk 0:00:49]} 21... Nxe5 {[%clk 0:01:48.1]} 22. Qxe5
{[%clk 0:00:49.9]} 22... Qg6+ {[%clk 0:01:46.1]} 23. Qg3 {[%clk 0:00:49.2]}
23... Rxd8 {[%clk 0:01:43.3]} 24. d4 {[%clk 0:00:36.4]} 24... Bg4 {[%clk
0:01:40.9]} 25. Rd2 {[%clk 0:00:21.3]} 25... h5 {[%clk 0:01:39.4]} 26. f3 {[%clk
0:00:15.8]} 26... Bxf3 {[%clk 0:01:28.5]} 27. Qxg6 {[%clk 0:00:16.7]} 27... fxg6
{[%clk 0:01:28.2]} 28. d5 {[%clk 0:00:17.6]} 28... g5 {[%clk 0:01:26.5]} 29. d6
{[%clk 0:00:18]} 29... g4 {[%clk 0:01:22.1]} 30. d7 {[%clk 0:00:17.4]} 30... Kf7
{[%clk 0:01:22.3]} 31. Re5 {[%clk 0:00:11.8]} 31... h4 {[%clk 0:01:21.7]} 32.
Kf2 {[%clk 0:00:10.6]} 32... Bc6 {[%clk 0:01:20.1]} 33. Rf5+ {[%clk 0:00:04.1]}
33... Ke6 {[%clk 0:01:18]} 34. Rf4 {[%clk 0:00:05]} 34... g3+ {[%clk 0:01:16.9]}
35. Kg1 {[%clk 0:00:05]} 35... g5 {[%clk 0:01:16.8]} 36. Rg4 {[%clk 0:00:04.8]}
36... Kf5 {[%clk 0:01:10.2]} 0-1

[Event "Early-Titled-Tuesday-Blitz-April-23-2024"]
[Site "Chess.com"]
[Date "2024.04.23"]
[Round "2"]
[White "UnTucopalaTimba"]
[Black "ImportedItalianMaple"]
[Result "0-1"]
[WhiteElo "2029"]
[BlackElo "2459"]
[TimeControl "180+1"]
[EndTime "8:16:52 PDT"]
[Termination "ImportedItalianMaple won by checkmate"]

1. e4 {[%clk 0:02:59]} 1... g6 {[%clk 0:03:00.3]} 2. d4 {[%clk 0:02:57]} 2...
Bg7 {[%clk 0:03:00.6]} 3. Nf3 {[%clk 0:02:55.4]} 3... d6 {[%clk 0:03:00.9]} 4.
Be2 {[%clk 0:02:54.8]} 4... b6 {[%clk 0:02:52.4]} 5. Nc3 {[%clk 0:02:49.5]} 5...
Bb7 {[%clk 0:02:52.7]} 6. Be3 {[%clk 0:02:47.5]} 6... e6 {[%clk 0:02:52.7]} 7.
Qd3 {[%clk 0:02:45.6]} 7... h6 {[%clk 0:02:52.4]} 8. O-O-O {[%clk 0:02:42.1]}
8... a6 {[%clk 0:02:51.8]} 9. h4 {[%clk 0:02:41.6]} 9... b5 {[%clk 0:02:51.9]}
10. a3 {[%clk 0:02:41]} 10... Nd7 {[%clk 0:02:51.4]} 11. g4 {[%clk 0:02:38.4]}
11... Rc8 {[%clk 0:02:43.7]} 12. d5 {[%clk 0:02:24.5]} 12... e5 {[%clk 0:02:42]}
13. Rhg1 {[%clk 0:02:20.8]} 13... Ne7 {[%clk 0:02:33.8]} 14. Nh2 {[%clk
0:02:13.6]} 14... c5 {[%clk 0:02:32.2]} 15. dxc6 {[%clk 0:02:12.9]} 15... Rxc6
{[%clk 0:02:32.7]} 16. f4 {[%clk 0:02:09.6]} 16... exf4 {[%clk 0:02:29.1]} 17.
Bxf4 {[%clk 0:02:08.8]} 17... Ne5 {[%clk 0:02:27.9]} 18. Bxe5 {[%clk 0:02:05.2]}
18... Bxe5 {[%clk 0:02:28.8]} 19. Nf3 {[%clk 0:02:03.7]} 19... Bxc3 {[%clk
0:02:26.4]} 20. bxc3 {[%clk 0:02:03.8]} 20... Qc7 {[%clk 0:02:26.3]} 21. Kb2
{[%clk 0:02:01.9]} 21... O-O {[%clk 0:02:20.8]} 22. Nd4 {[%clk 0:02:01.8]} 22...
Rc4 {[%clk 0:02:20.2]} 23. Qd2 {[%clk 0:01:54.4]} 23... Rc5 {[%clk 0:02:14.2]}
24. Bd3 {[%clk 0:01:50.7]} 24... Rc8 {[%clk 0:02:12.1]} 25. h5 {[%clk
0:01:42.9]} 25... g5 {[%clk 0:01:59.6]} 26. Rgf1 {[%clk 0:01:37.1]} 26... Rxc3
{[%clk 0:01:54.8]} 27. Qf2 {[%clk 0:01:31.6]} 27... Nc6 {[%clk 0:01:10.1]} 28.
Kxc3 {[%clk 0:01:23.1]} 28... Nxd4+ {[%clk 0:01:10]} 29. Kb2 {[%clk 0:01:23]}
29... Qc3+ {[%clk 0:01:06.7]} 30. Kb1 {[%clk 0:01:19.3]} 30... Rc7 {[%clk
0:01:05.8]} 31. Rde1 {[%clk 0:00:59.7]} 31... b4 {[%clk 0:00:52.4]} 32. a4
{[%clk 0:00:54.2]} 32... b3 {[%clk 0:00:49.9]} 33. Rc1 {[%clk 0:00:46.6]} 33...
b2 {[%clk 0:00:46.5]} 34. Rce1 {[%clk 0:00:37.1]} 34... Qa3 {[%clk 0:00:46.2]}
35. c3 {[%clk 0:00:29.6]} 35... Qa1# {[%clk 0:00:46.3]} 0-1

[Event "Early-Titled-Tuesday-Blitz-April-23-2024"]
[Site "Chess.com"]
[Date "2024.04.23"]
[Round "2"]
[White "GambitGiesbergen"]
[Black "sofaceindisguise"]
[Result "0-1"]
[WhiteElo "2305"]
[BlackElo "2688"]
[TimeControl "180+1"]
[EndTime "8:16:53 PDT"]
[Termination "sofaceindisguise won by checkmate"]

1. e4 {[%clk 0:03:00.9]} 1... c5 {[%clk 0:02:57.7]} 2. b4 {[%clk 0:02:58.9]}
2... cxb4 {[%clk 0:02:57.3]} 3. d4 {[%clk 0:02:59.2]} 3... d5 {[%clk 0:02:54.8]}
4. Nd2 {[%clk 0:02:59.8]} 4... Nf6 {[%clk 0:02:53.1]} 5. Bd3 {[%clk 0:02:58.8]}
5... dxe4 {[%clk 0:02:53]} 6. Nxe4 {[%clk 0:02:59.7]} 6... Nc6 {[%clk
0:02:52.7]} 7. Nf3 {[%clk 0:02:59.7]} 7... Bg4 {[%clk 0:02:52.2]} 8. O-O {[%clk
0:03:00.3]} 8... Nd5 {[%clk 0:02:45.4]} 9. Rb1 {[%clk 0:02:50.2]} 9... e6 {[%clk
0:02:45]} 10. c4 {[%clk 0:02:47.3]} 10... Nf6 {[%clk 0:02:40.1]} 11. d5 {[%clk
0:02:36.9]} 11... exd5 {[%clk 0:02:34.2]} 12. Nxf6+ {[%clk 0:02:36.7]} 12...
Qxf6 {[%clk 0:02:33.7]} 13. cxd5 {[%clk 0:02:35.7]} 13... Nd4 {[%clk 0:02:29.3]}
14. Qe1+ {[%clk 0:02:11.4]} 14... Be7 {[%clk 0:02:21.2]} 15. Nxd4 {[%clk
0:02:08]} 15... Qxd4 {[%clk 0:02:22]} 16. Bb5+ {[%clk 0:02:06.5]} 16... Kf8
{[%clk 0:02:21.9]} 17. Bb2 {[%clk 0:01:48.1]} 17... Qc5 {[%clk 0:02:22.2]} 18.
Ba4 {[%clk 0:01:37.7]} 18... Rd8 {[%clk 0:02:13.6]} 19. Bb3 {[%clk 0:01:37.1]}
19... Bf6 {[%clk 0:02:08]} 20. Rc1 {[%clk 0:01:27.2]} 20... Qd6 {[%clk
0:02:07.4]} 21. Bxf6 {[%clk 0:01:24.6]} 21... gxf6 {[%clk 0:02:05.4]} 22. Rc4
{[%clk 0:01:20.7]} 22... Bf5 {[%clk 0:02:02.9]} 23. Qd2 {[%clk 0:00:53.4]} 23...
Kg7 {[%clk 0:01:59.8]} 24. Rh4 {[%clk 0:00:53.2]} 24... h5 {[%clk 0:01:59.1]}
25. Re1 {[%clk 0:00:38.8]} 25... a5 {[%clk 0:01:58.2]} 26. Re3 {[%clk
0:00:36.9]} 26... Bg6 {[%clk 0:01:58.5]} 27. h3 {[%clk 0:00:26.4]} 27... b5
{[%clk 0:01:58.2]} 28. Rg3 {[%clk 0:00:18.5]} 28... a4 {[%clk 0:01:57.4]} 29.
Bc2 {[%clk 0:00:16]} 29... Qxd5 {[%clk 0:01:57.8]} 30. Qc1 {[%clk 0:00:12.2]}
30... Rc8 {[%clk 0:01:56.5]} 31. Kh2 {[%clk 0:00:10.6]} 31... Qd6 {[%clk
0:01:51.1]} 32. f4 {[%clk 0:00:08.6]} 32... f5 {[%clk 0:01:43.3]} 33. Qa1+
{[%clk 0:00:07.2]} 33... Qf6 {[%clk 0:01:43.3]} 34. Qb1 {[%clk 0:00:07.4]} 34...
Qxh4 {[%clk 0:01:42.7]} 35. Bxf5 {[%clk 0:00:07.6]} 35... Qxf4 {[%clk 0:01:40]}
36. Bxg6 {[%clk 0:00:08.2]} 36... h4 {[%clk 0:01:40.3]} 37. Qb2+ {[%clk
0:00:09.1]} 37... Kh6 {[%clk 0:01:36.9]} 38. Kh1 {[%clk 0:00:02.7]} 38... Rc1+
{[%clk 0:01:35.8]} 39. Qxc1 {[%clk 0:00:02.2]} 39... Qxc1+ {[%clk 0:01:35.8]}
40. Kh2 {[%clk 0:00:03.1]} 40... hxg3+ {[%clk 0:01:35.9]} 41. Kxg3 {[%clk
0:00:04]} 41... Kxg6 {[%clk 0:01:36.3]} 42. a3 {[%clk 0:00:04]} 42... b3 {[%clk
0:01:36.6]} 43. h4 {[%clk 0:00:04.9]} 43... b2 {[%clk 0:01:36.8]} 44. h5+ {[%clk
0:00:05.8]} 44... Kh6 {[%clk 0:01:36.4]} 45. Kh3 {[%clk 0:00:06.7]} 45... b1=Q
{[%clk 0:01:37]} 46. g4 {[%clk 0:00:07.6]} 46... Qe3+ {[%clk 0:01:36.1]} 47. Kh4
{[%clk 0:00:08]} 47... Qh1# {[%clk 0:01:36.7]} 0-1